fUSD/lending_fUSD_20260227
["ID","MTS","AMOUNT","RATE_DAILY","PERIOD"]
[406804278,1772203889534,-500.0,0.00046096,120]
[406804279,1772203889543,-500.0,0.00046096,120]
[406804280,1772203889553,-500.0,0.00046096,120]
[406804281,1772203889562,-204.00785369,0.00046096,120]
[406804282,1772203889572,-2396.06,0.00046096,60]
[406804283,1772203889583,-2396.06,0.00046096,60]
[406804284,1772203889593,-2396.06,0.00046096,60]
[406804285,1772203889603,-2396.06,0.00046096,60]
[406804286,1772203889614,-2396.06,0.00046096,60]
[406804287,1772203889623,-2396.06,0.00046096,60]
[406804288,1772203889634,-2396.06,0.00046096,60]
[406804289,1772203889643,-2396.06,0.00046096,60]
[406804290,1772203889653,-2396.06,0.00046096,60]
[406804291,1772203889662,-2396.06,0.00046096,60]
[406804292,1772203889671,-2396.06,0.00046096,60]
[406804293,1772203889681,-2396.06,0.00046096,60]
[406804294,1772203889691,-2396.06,0.00046096,60]
[406804295,1772203889700,-2396.06,0.00046096,60]
[406804296,1772203889709,-2396.06,0.00046096,60]
[406804297,1772203889719,-2396.06,0.00046096,60]
[406804298,1772203889728,-2396.06,0.00046096,60]
[406804299,1772203889737,-2396.06,0.00046096,60]
[406804300,1772203889747,-2396.06,0.00046096,60]
[406804301,1772203889756,-2396.06,0.00046096,60]
[406804302,1772203889766,-2396.06,0.00046096,60]
[406804303,1772203889776,-2396.06,0.00046096,60]
[406804304,1772203889785,-2396.06,0.00046096,60]
[406804305,1772203889794,-2396.25147516,0.00046096,60]
[406804306,1772203889803,-1032.66,0.00046096,120]
[406804307,1772203889812,-1032.66,0.00046096,120]
[406804308,1772203889822,-1032.66,0.00046096,120]
[406804309,1772203889831,-1032.66,0.00046096,120]
[406804310,1772203889840,-1032.66,0.00046096,120]
[406804311,1772203889849,-1032.66,0.00046096,120]
[406804312,1772203889859,-1032.66,0.00046096,120]
[406804313,1772203889868,-1032.66,0.00046096,120]
[406804314,1772203889881,-1032.66,0.00046096,120]
[406804315,1772203889890,-1032.66,0.00046096,120]
[406804316,1772203889900,-1032.66,0.00046096,120]
[406804317,1772203889910,-1032.66,0.00046096,120]
[406804318,1772203889919,-1032.66,0.00046096,120]
[406804319,1772203889931,-1032.66,0.00046096,120]
[406804320,1772203889940,-1032.66,0.00046096,120]
[406804321,1772203889950,-1032.66,0.00046096,120]
[406804322,1772203889959,-1032.66,0.00046096,120]
[406804323,1772203889969,-500.0,0.00046096,120]
[406804324,1772203889978,-1032.66,0.00046096,120]
[406804325,1772203889987,-500.0,0.00046096,120]
[406804326,1772203889997,-1032.66,0.00046096,120]
[406804327,1772203890006,-500.0,0.00046096,120]
[406804328,1772203890016,-1032.66,0.00046096,120]
[406804329,1772203890025,-500.0,0.00046096,120]
[406804330,1772203890035,-1032.66,0.00046096,120]
[406804331,1772203890044,-500.0,0.00046096,120]
[406804332,1772203890056,-500.0,0.00046096,120]
[406804333,1772203890066,-159.10942202,0.00046096,120]
[406804334,1772203890076,-247.0,0.00046096,120]
[406804335,1772203890085,-59035.0,0.00046096,30]
[406804336,1772203890094,-1206.57,0.00046096,120]
[406804337,1772203890104,-1206.57,0.00046096,120]
[406804338,1772203890113,-1206.57,0.00046096,120]
[406804339,1772203890122,-1206.57,0.00046096,120]
[406804340,1772203890131,-1206.57,0.00046096,120]
[406804341,1772203890141,-1206.57,0.00046096,120]
[406804342,1772203890149,-1206.57,0.00046096,120]
[406804343,1772203890159,-1206.57,0.00046096,120]
[406804344,1772203890168,-1206.57,0.00046096,120]
[406804345,1772203890179,-1206.57,0.00046096,120]
[406804346,1772203890188,-1206.57,0.00046096,120]
[406804347,1772203890197,-1206.57,0.00046096,120]
[406804348,1772203890207,-1206.57,0.00046096,120]
[406804349,1772203890217,-1206.57,0.00046096,120]
[406804350,1772203890226,-1206.57,0.00046096,120]
[406804351,1772203890235,-1206.57,0.00046096,120]
[406804352,1772203890244,-1206.57,0.00046096,120]
[406804353,1772203890253,-1206.57,0.00046096,120]
[406804354,1772203890263,-1206.57,0.00046096,120]
[406804355,1772203890272,-1206.57,0.00046096,120]
[406804356,1772203890281,-1206.57,0.00046096,120]
[406804357,1772203890292,-1206.57,0.00046096,120]
[406804358,1772203890301,-1206.57,0.00046096,120]
[406804359,1772203890310,-1206.63728967,0.00046096,120]
[406804360,1772203890319,-443.16324689,0.00046096,120]
[406804361,1772203890328,-589.1209252,0.00046096,120]
[406804362,1772203890338,-107233.20677463,0.00046096,120]
[406804363,1772203890347,-11636.7292554,0.00046096,120]
[406804364,1772203890357,-1584.40871029,0.00046096,120]
[406804365,1772203890366,-200148.88152154,0.00046096,30]
[406804366,1772203890376,-9180.0,0.00046096,120]
[406804367,1772203890385,-154.37,0.00046096,120]
[406804368,1772203890394,-457.31011888,0.00046096,30]
[406804369,1772203890404,-500.0,0.00046096,120]
[406804370,1772203890417,-500.0,0.00046096,120]
[406804371,1772203890427,-500.0,0.00046096,120]
[406804372,1772203890436,-500.0,0.00046096,120]
[406804373,1772203890446,-500.0,0.00046096,120]
[406804374,1772203890456,-500.0,0.00046096,120]
[406804375,1772203890466,-500.0,0.00046096,120]
[406804376,1772203890476,-500.0,0.00046096,120]
[406804377,1772203890488,-500.0,0.00046096,120]
[406804378,1772203890498,-500.0,0.00046096,120]
[406804379,1772203890507,-500.0,0.00046096,120]
[406804380,1772203890516,-505.99212227,0.00046096,120]
[406804381,1772203890525,-3828.23856617,0.00046096,30]
[406804382,1772203890535,-2577.252426,0.00046096,120]
[406804383,1772203890544,-500.0,0.00046096,120]
[406804384,1772203890553,-500.0,0.00046096,120]
[406804385,1772203890563,-500.0,0.00046096,120]
[406804386,1772203890572,-500.0,0.00046096,120]
[406804387,1772203890582,-500.0,0.00046096,120]
[406804388,1772203890591,-500.0,0.00046096,120]
[406804389,1772203890600,-500.0,0.00046096,120]
[406804390,1772203890610,-556.81454222,0.00046096,120]
[406804391,1772203890619,-570.30951885,0.00046096,30]
[406804392,1772203890628,-297.04363578,0.00046096,120]
[406804393,1772203890638,-2076.71106415,0.00046096,30]
[406804394,1772203890647,-512.72932207,0.00046096,120]
[406804395,1772203890657,-262.95365913,0.00046096,120]
[406804396,1772203890666,-32379.79388169,0.00046096,120]
[406804397,1772203890676,-2557.60148544,0.00046096,62]
[406804398,1772203890685,-500.0,0.00046096,120]
[406804399,1772203890694,-302.50533761,0.00046096,120]
[406804400,1772203890703,-150.0,0.00046096,2]
[406804401,1772203890713,-1326.16,0.00046096,90]
[406804402,1772203890722,-1326.16,0.00046096,90]
[406804403,1772203890733,-1326.16,0.00046096,90]
[406804404,1772203890743,-1326.16,0.00046096,90]
[406804405,1772203890752,-1326.16,0.00046096,90]
[406804406,1772203890762,-1326.16,0.00046096,90]
[406804407,1772203890772,-1326.16,0.00046096,90]
[406804408,1772203890782,-1326.16,0.00046096,90]
[406804409,1772203890791,-1326.16,0.00046096,90]
[406804410,1772203890800,-1326.16,0.00046096,90]
[406804411,1772203890810,-1326.16,0.00046096,90]
[406804412,1772203890820,-1326.16,0.00046096,90]
[406804413,1772203890831,-1326.16,0.00046096,90]
[406804414,1772203890841,-1326.16,0.00046096,90]
[406804415,1772203890850,-1326.16,0.00046096,90]
[406804416,1772203890861,-1326.16,0.00046096,90]
[406804417,1772203890870,-1326.16,0.00046096,90]
[406804418,1772203890879,-1326.16,0.00046096,90]
[406804419,1772203890889,-1326.16,0.00046096,90]
[406804420,1772203890898,-1326.16,0.00046096,90]
[406804421,1772203890907,-1326.16,0.00046096,90]
[406804422,1772203890916,-1326.16,0.00046096,90]
[406804423,1772203890926,-1326.16,0.00046096,90]
[406804424,1772203890936,-1326.1866339,0.00046096,90]
[406804425,1772203890945,-1778.08,0.00046096,120]
[406804426,1772203890954,-1778.08,0.00046096,120]
[406804427,1772203890963,-1778.08,0.00046096,120]
[406804428,1772203890974,-1778.08,0.00046096,120]
[406804429,1772203890984,-1778.08,0.00046096,120]
[406804430,1772203890994,-1778.08,0.00046096,120]
[406804431,1772203891004,-1778.08,0.00046096,120]
[406804432,1772203891013,-1778.08,0.00046096,120]
[406804433,1772203891022,-1778.08,0.00046096,120]
[406804434,1772203891031,-1778.08,0.00046096,120]
[406804435,1772203891045,-1778.08,0.00046096,120]
[406804436,1772203891055,-1778.08,0.00046096,120]
[406804437,1772203891064,-1778.08,0.00046096,120]
[406804438,1772203891074,-1778.08,0.00046096,120]
[406804439,1772203891083,-1778.08,0.00046096,120]
[406804440,1772203891092,-1778.08,0.00046096,120]
[406804441,1772203891102,-1778.08,0.00046096,120]
[406804442,1772203891112,-1778.08,0.00046096,120]
[406804443,1772203891122,-1778.08,0.00046096,120]
[406804444,1772203891131,-1778.08,0.00046096,120]
[406804445,1772203891140,-1778.08,0.00046096,120]
[406804446,1772203891149,-1778.08,0.00046096,120]
[406804447,1772203891158,-1778.08,0.00046096,120]
[406804448,1772203891168,-1778.15200089,0.00046096,120]
[406804449,1772203891177,-397.19,0.00046096,120]
[406804450,1772203891187,-18206.56806991,0.00046096,2]
[406804451,1772203891196,-398.74054251,0.00046096,2]
[406804452,1772203891205,-206028.59716984,0.00046096,2]
[406804453,1772203891216,-124473.23775373,0.00046096,2]
[406804454,1772203891226,-1210.0,0.00046096,2]
[406804455,1772203891235,-10872.93087451,0.00046096,3]
[406804456,1772203891244,-716.88453834,0.00046096,2]
[406804457,1772203891253,-27071.30838639,0.00046096,20]
[406804458,1772203891272,-355.19789392,0.00046096,2]
[406804459,1772203891281,-2857.27588292,0.00046096,2]
[406804460,1772203891291,-985.89117982,0.00046096,2]
[406804461,1772203891300,-1550.39789789,0.00046096,2]
[406804462,1772203891310,-1049.98895354,0.00046096,2]
[406804463,1772203891319,-5290.07407183,0.00046096,2]
[406804464,1772203891328,-500.39597898,0.00046096,2]
[406804465,1772203891337,-2504.0614858,0.00046096,2]
[406804466,1772203891346,-2757.31201415,0.00046096,2]
[406804467,1772203891355,-220585.30244422,0.00046096,2]
[406804468,1772203891364,-154.28554888,0.00046096,2]
[406804469,1772203891373,-1710.43329969,0.00046096,2]
[406804470,1772203891382,-254.04394268,0.00046096,2]
[406804471,1772203891392,-500.0,0.00046096,2]
[406804472,1772203891401,-1286.16770314,0.00046096,2]
[406804473,1772203891416,-248.11069069,0.00046096,2]
[406804474,1772203891425,-1062.07729896,0.00046096,2]
[406804475,1772203891434,-556.00198184,0.00046096,2]
[406804476,1772203891443,-9418.1798693,0.00046096,2]
[406804477,1772203891455,-1337.38744824,0.00046096,2]
[406804478,1772203891464,-3487.47261375,0.00046096,2]
[406804479,1772203891474,-2239.71893343,0.00046096,2]
[406804480,1772203891483,-23341.75014924,0.00046096,2]
[406804481,1772203891493,-762.20694388,0.00046096,2]
[406804482,1772203891502,-13085.27978374,0.00046096,2]
[406804483,1772203891511,-187.65558638,0.00046096,2]
[406804484,1772203891521,-15236.45142597,0.00046096,3]
[406804485,1772203891530,-643.0,0.00046096,2]
[406804486,1772203891539,-989.55060407,0.00046096,2]
[406804487,1772203891549,-584.24155153,0.00046096,2]
[406804488,1772203891559,-410164.19470626,0.00046096,2]
[406804489,1772203891568,-3304.5520587,0.00046096,2]
[406804490,1772203891578,-158.42494937,0.00046096,2]
[406804491,1772203891587,-178.79191885,0.00046096,2]
[406804492,1772203891597,-439.11702862,0.00046096,2]
[406804493,1772203891607,-550.0,0.00046096,2]
[406804494,1772203891616,-173425.28325904,0.00046096,2]
[406804495,1772203891626,-15230.3964618,0.00046096,2]
[406804496,1772203891636,-233.28140662,0.00046096,2]
[406804497,1772203891646,-177.04150809,0.00046096,2]
[406804498,1772203891655,-498.42634698,0.00046096,3]
[406804499,1772203891665,-382.44687942,0.00046096,2]
[406804500,1772203891674,-1302.89606227,0.00046096,2]
[406804501,1772203891885,-1052.86653309,0.00046096,2]
[406804502,1772203891894,-1166.33964658,0.00046096,2]
[406804503,1772203891904,-674.4332823,0.00046096,2]
[406804504,1772203891914,-638.5567248,0.00046096,2]
[406804505,1772203891924,-218.91133224,0.00046096,2]
[406804506,1772203891935,-1087.34135023,0.00046096,2]
[406804507,1772203891944,-2500.0,0.00046096,2]
[406804508,1772203891954,-348.71598831,0.00046096,2]
[406804509,1772203891963,-1100.0,0.00046096,2]
[406804510,1772203891973,-3899.60863988,0.00046096,2]
[406804511,1772203891982,-929.81086216,0.00046096,2]
[406804512,1772203891991,-1340.1381126,0.00046096,2]
[406804513,1772203892001,-490.91097128,0.00046096,2]
[406804514,1772203892010,-616.96221901,0.00046096,2]
[406804515,1772203892019,-1618.07609388,0.00046096,2]
[406804516,1772203892029,-57951.23212601,0.00046096,2]
[406804517,1772203892038,-558.93736694,0.00046096,2]
[406804518,1772203892047,-1031.3888357,0.00046096,2]
[406804519,1772203892056,-371.88666792,0.00046096,2]
[406804520,1772203892065,-2246.67637503,0.00046096,2]
[406804521,1772203892075,-12478.972963,0.00046096,2]
[406804522,1772203892084,-1872.48565587,0.00046096,2]
[406804523,1772203892093,-1140.0022719,0.00046096,2]
[406804524,1772203892102,-213187.84127823,0.00046096,2]
[406804525,1772203892111,-410.42653802,0.00046096,2]
[406804526,1772203892120,-20693.25346316,0.00046096,2]
[406804527,1772203892129,-2486.79860664,0.00046096,2]
[406804528,1772203892138,-206.83674489,0.00046096,2]
[406804529,1772203892148,-880.31381384,0.00046096,2]
[406804530,1772203892160,-288.35803784,0.00046096,2]
[406804531,1772203892169,-1142.07479474,0.00046096,2]
[406804532,1772203892179,-2215.48475694,0.00046096,2]
[406804533,1772203892188,-893.36961822,0.00046096,2]
[406804534,1772203892198,-469.65182195,0.00046096,2]
[406804535,1772203892208,-150.0,0.00046096,2]
[406804536,1772203892217,-160.0,0.00046096,2]
[406804537,1772203892226,-610.0,0.00046096,2]
[406804538,1772203892235,-12888.96135809,0.00046096,2]
[406804539,1772203892243,-361.07584889,0.00046096,2]
[406804540,1772203892252,-203.41470425,0.00046096,2]
[406804541,1772203892261,-757.32369834,0.00046096,2]
[406804542,1772203892270,-1372.03633501,0.00046096,2]
[406804543,1772203892279,-200.48924133,0.00046096,2]
[406804544,1772203892289,-1523.11717613,0.00046096,2]
[406804545,1772203892298,-162.09821535,0.00046096,2]
[406804546,1772203892307,-465.93861986,0.00046096,2]
[406804547,1772203892315,-1000.0,0.00046096,120]
[406804548,1772203892324,-909381.18,0.00046096,30]
[406804549,1772203892333,-12011.23,0.00046096,120]
[406804550,1772203892343,-500.0,0.00046096,120]
[406804551,1772203892352,-50000.0,0.00046096,70]
[406804552,1772203892361,-500.0,0.00046096,120]
[406804553,1772203892370,-500.0,0.00046096,120]
[406804554,1772203892380,-500.0,0.00046096,120]
[406804555,1772203892389,-500.0,0.00046096,120]
[406804556,1772203892399,-500.0,0.00046096,120]
[406804557,1772203892408,-500.0,0.00046096,120]
[406804558,1772203892421,-514.24959513,0.00046096,120]
[406804559,1772203892431,-500.0,0.00046096,7]
[406804560,1772203892440,-500.0,0.00046096,7]
[406804561,1772203892450,-390.5001205,0.00046096,7]
[406804562,1772203892461,-500.0,0.00046096,120]
[406804563,1772203892470,-500.0,0.00046096,120]
[406804564,1772203892480,-500.0,0.00046096,120]
[406804565,1772203892492,-500.0,0.00046096,120]
[406804566,1772203892502,-500.0,0.00046096,120]
[406804567,1772203892512,-500.0,0.00046096,120]
[406804568,1772203892521,-500.0,0.00046096,120]
[406804569,1772203892530,-500.0,0.00046096,120]
[406804570,1772203892543,-500.0,0.00046096,120]
[406804571,1772203892553,-500.0,0.00046096,120]
[406804572,1772203892563,-500.0,0.00046096,120]
[406804573,1772203892573,-500.0,0.00046096,120]
[406804574,1772203892584,-500.0,0.00046096,120]
[406804575,1772203892593,-500.0,0.00046096,120]
[406804576,1772203892603,-500.0,0.00046096,120]
[406804577,1772203892613,-500.0,0.00046096,120]
[406804578,1772203892623,-421.53466062,0.00046096,120]
[406804579,1772203892632,-500.0,0.00046096,5]
[406804580,1772203892641,-500.0,0.00046096,5]
[406804581,1772203892650,-500.0,0.00046096,5]
[406804582,1772203892659,-500.0,0.00046096,5]
[406804583,1772203892668,-500.0,0.00046096,5]
[406804584,1772203892679,-500.0,0.00046096,5]
[406804585,1772203892689,-500.0,0.00046096,5]
[406804586,1772203892698,-500.0,0.00046096,5]
[406804587,1772203892707,-500.0,0.00046096,5]
[406804588,1772203892716,-500.0,0.00046096,5]
[406804589,1772203892725,-273.55278711,0.00046096,5]
[406804590,1772203892735,-3865.15740962,0.00046096,30]
[406804591,1772203892745,-500.0,0.00046096,14]
[406804592,1772203892754,-304.02526449,0.00046096,14]
[406804593,1772203892764,-591.08329066,0.00046096,120]
[406804594,1772203892773,-500.0,0.00046096,20]
[406804595,1772203892783,-521.07035362,0.00046096,20]
[406804596,1772203892792,-500.0,0.00046096,120]
[406804597,1772203892801,-554.83371041,0.00046096,120]
[406804598,1772203892810,-565.86937825,0.00046096,120]
[406804599,1772203892819,-500.0,0.00046096,120]
[406804600,1772203892829,-451.31633388,0.00046096,120]
[406804601,1772203892838,-500.0,0.00046096,120]
[406804602,1772203892847,-207.72,0.00046096,120]
[406804603,1772203892856,-500.0,0.00046096,120]
[406804604,1772203892865,-500.0,0.00046096,120]
[406804605,1772203892874,-500.0,0.00046096,120]
[406804606,1772203892883,-439.85740556,0.00046096,120]
[406804607,1772203892893,-500.0,0.00046096,120]
[406804608,1772203892902,-500.0,0.00046096,120]
[406804609,1772203892911,-500.0,0.00046096,120]
[406804610,1772203892920,-500.0,0.00046096,120]
[406804611,1772203892931,-500.0,0.00046096,120]
[406804612,1772203892941,-500.0,0.00046096,120]
[406804613,1772203892950,-500.0,0.00046096,120]
[406804614,1772203892959,-500.0,0.00046096,120]
[406804615,1772203892969,-500.0,0.00046096,120]
[406804616,1772203892979,-500.0,0.00046096,120]
[406804617,1772203892990,-500.0,0.00046096,120]
[406804618,1772203892999,-554.97565485,0.00046096,120]
[406804619,1772203893009,-500.0,0.00046096,120]
[406804620,1772203893018,-500.0,0.00046096,120]
[406804621,1772203893027,-500.0,0.00046096,120]
[406804622,1772203893036,-500.0,0.00046096,120]
[406804623,1772203893046,-500.0,0.00046096,120]
[406804624,1772203893055,-500.0,0.00046096,120]
[406804625,1772203893064,-500.0,0.00046096,120]
[406804626,1772203893073,-500.0,0.00046096,120]
[406804627,1772203893082,-500.0,0.00046096,120]
[406804628,1772203893092,-635.54930781,0.00046096,120]
[406804629,1772203893101,-500.0,0.00046096,120]
[406804630,1772203893110,-542.58361417,0.00046096,120]
[406804631,1772203893120,-500.0,0.00046096,120]
[406804632,1772203893129,-500.0,0.00046096,120]
[406804633,1772203893138,-500.0,0.00046096,120]
[406804634,1772203893147,-500.0,0.00046096,120]
[406804635,1772203893157,-500.0,0.00046096,120]
[406804636,1772203893166,-500.0,0.00046096,120]
[406804637,1772203893175,-500.0,0.00046096,120]
[406804638,1772203893186,-500.0,0.00046096,120]
[406804639,1772203893195,-500.0,0.00046096,120]
[406804640,1772203893204,-278.96030661,0.00046096,120]
[406804641,1772203893214,-500.0,0.00046096,120]
[406804642,1772203893222,-500.0,0.00046096,120]
[406804643,1772203893232,-500.0,0.00046096,120]
[406804644,1772203893240,-500.0,0.00046096,120]
[406804645,1772203893249,-293.63,0.00046096,120]
[406804646,1772203893258,-500.0,0.00046096,120]
[406804647,1772203893267,-500.0,0.00046096,120]
[406804648,1772203893276,-500.0,0.00046096,120]
[406804649,1772203893286,-500.0,0.00046096,120]
[406804650,1772203893295,-407.48000001,0.00046096,120]
[406804651,1772203893310,-433.93547674,0.00046096,120]
[406804652,1772203893322,-433.93547674,0.00046096,120]
[406804653,1772203893332,-433.93547674,0.00046096,120]
[406804654,1772203893341,-433.93547674,0.00046096,120]
[406804655,1772203893349,-433.93547674,0.00046096,120]
[406804656,1772203893359,-433.93547674,0.00046096,120]
[406804657,1772203893367,-433.93547674,0.00046096,120]
[406804658,1772203893376,-433.93547674,0.00046096,120]
[406804659,1772203893385,-433.93547674,0.00046096,120]
[406804660,1772203893394,-433.93547674,0.00046096,120]
[406804661,1772203893403,-433.93547674,0.00046096,120]
[406804662,1772203893416,-433.93547674,0.00046096,120]
[406804663,1772203893424,-433.93547674,0.00046096,120]
[406804664,1772203893434,-433.93547674,0.00046096,120]
[406804665,1772203893443,-433.93547674,0.00046096,120]
[406804666,1772203893453,-433.93547674,0.00046096,120]
[406804667,1772203893462,-433.93547674,0.00046096,120]
[406804668,1772203893471,-433.93547674,0.00046096,120]
[406804669,1772203893480,-433.93547674,0.00046096,120]
[406804670,1772203893490,-433.93547674,0.00046096,120]
[406804671,1772203893499,-433.93547674,0.00046096,120]
[406804672,1772203893509,-433.93547674,0.00046096,120]
[406804673,1772203893518,-500.0,0.00046096,60]
[406804674,1772203893527,-433.93547674,0.00046096,120]
[406804675,1772203893536,-500.0,0.00046096,120]
[406804676,1772203893545,-500.0,0.00046096,60]
[406804677,1772203893554,-433.93547674,0.00046096,120]
[406804678,1772203893563,-500.0,0.00046096,120]
[406804679,1772203893572,-500.0,0.00046096,60]
[406804680,1772203893580,-500.0,0.00046096,120]
[406804681,1772203893589,-500.0,0.00046096,60]
[406804682,1772203893598,-433.93547674,0.00046096,120]
[406804683,1772203893607,-500.0,0.00046096,60]
[406804684,1772203893616,-500.0,0.00046096,120]
[406804685,1772203893625,-558.85166645,0.00046096,120]
[406804686,1772203893634,-433.93547674,0.00046096,120]
[406804687,1772203893642,-500.0,0.00046096,60]
[406804688,1772203893651,-500.0,0.00046096,120]
[406804689,1772203893660,-500.0,0.00046096,60]
[406804690,1772203893669,-433.93547674,0.00046096,120]
[406804691,1772203893678,-632.13219789,0.00046096,120]
[406804692,1772203893687,-500.0,0.00046096,60]
[406804693,1772203893696,-433.93547674,0.00046096,120]
[406804694,1772203893705,-500.0,0.00046096,60]
[406804695,1772203893715,-433.93547674,0.00046096,120]
[406804696,1772203893724,-500.0,0.00046096,60]
[406804697,1772203893733,-195.8504839,0.00046096,60]
[406804698,1772203893742,-433.93547674,0.00046096,120]
[406804699,1772203893751,-500.0,0.00046096,120]
[406804700,1772203893760,-500.0,0.00046096,120]
[406804701,1772203893769,-500.0,0.00046096,120]
[406804702,1772203893778,-500.0,0.00046096,120]
[406804703,1772203893787,-500.0,0.00046096,120]
[406804704,1772203893796,-624.19011296,0.00046096,120]
[406804705,1772203893805,-500.0,0.00046096,120]
[406804706,1772203893814,-500.0,0.00046096,120]
[406804707,1772203893823,-500.0,0.00046096,120]
[406804708,1772203893832,-500.0,0.00046096,120]
[406804709,1772203893841,-500.0,0.00046096,120]
[406804710,1772203893850,-500.0,0.00046096,120]
[406804711,1772203893860,-500.0,0.00046096,120]
[406804712,1772203893870,-500.0,0.00046096,120]
[406804713,1772203893879,-500.0,0.00046096,120]
[406804714,1772203893888,-500.0,0.00046096,120]
[406804715,1772203893898,-500.0,0.00046096,120]
[406804716,1772203893906,-549.60362006,0.00046096,120]
[406804717,1772203893915,-500.0,0.00046096,120]
[406804718,1772203893925,-545.83583094,0.00046096,120]
[406804719,1772203893936,-500.0,0.00046096,120]
[406804720,1772203893945,-253.26644746,0.00046096,120]
[406804721,1772203893955,-500.0,0.00046096,120]
[406804722,1772203893964,-500.0,0.00046096,120]
[406804723,1772203893973,-500.0,0.00046096,120]
[406804724,1772203893982,-500.0,0.00046096,120]
[406804725,1772203893991,-500.0,0.00046096,120]
[406804726,1772203894001,-500.0,0.00046096,120]
[406804727,1772203894010,-500.0,0.00046096,120]
[406804728,1772203894019,-500.0,0.00046096,120]
[406804729,1772203894028,-500.0,0.00046096,120]
[406804730,1772203894037,-500.0,0.00046096,120]
[406804731,1772203894047,-189.67158624,0.00046096,120]
[406804732,1772203894056,-500.0,0.00046096,120]
[406804733,1772203894065,-500.0,0.00046096,120]
[406804734,1772203894074,-500.0,0.00046096,120]
[406804735,1772203894083,-500.0,0.00046096,120]
[406804736,1772203894092,-500.0,0.00046096,120]
[406804737,1772203894102,-500.0,0.00046096,120]
[406804738,1772203894111,-538.06535743,0.00046096,120]
[406804739,1772203894120,-500.0,0.00046096,120]
[406804740,1772203894129,-500.0,0.00046096,120]
[406804741,1772203894139,-500.0,0.00046096,120]
[406804742,1772203894148,-500.0,0.00046096,60]
[406804743,1772203894158,-444.84636116,0.00046096,60]
[406804744,1772203894167,-159.92602941,0.00046096,120]
[406804745,1772203894176,-500.0,0.00046096,120]
[406804746,1772203894186,-500.0,0.00046096,120]
[406804747,1772203894196,-500.0,0.00046096,120]
[406804748,1772203894205,-500.0,0.00046096,120]
[406804749,1772203894214,-500.0,0.00046096,120]
[406804750,1772203894223,-500.0,0.00046096,120]
[406804751,1772203894233,-500.0,0.00046096,120]
[406804752,1772203894241,-422.17944187,0.00046096,120]
[406804753,1772203894251,-500.0,0.00046096,120]
[406804754,1772203894259,-500.0,0.00046096,120]
[406804755,1772203894268,-500.0,0.00046096,120]
[406804756,1772203894277,-602.09730905,0.00046096,120]
[406804757,1772203894286,-500.0,0.00046096,120]
[406804758,1772203894295,-500.0,0.00046096,120]
[406804759,1772203894305,-500.0,0.00046096,120]
[406804760,1772203894314,-500.0,0.00046096,120]
[406804761,1772203894323,-500.0,0.00046096,120]
[406804762,1772203894332,-477.34969218,0.00046096,120]
[406804763,1772203894341,-629.82632612,0.00046096,120]
[406804764,1772203894350,-500.0,0.00046096,120]
[406804765,1772203894359,-359.33919801,0.00046096,120]
[406804766,1772203894368,-500.0,0.00046096,120]
[406804767,1772203894377,-500.0,0.00046096,120]
[406804768,1772203894386,-500.0,0.00046096,120]
[406804769,1772203894396,-164.57858989,0.00046096,120]
[406804770,1772203894406,-500.0,0.00046096,120]
[406804771,1772203894417,-500.0,0.00046096,120]
[406804772,1772203894430,-500.0,0.00046096,120]
[406804773,1772203894439,-500.0,0.00046096,120]
[406804774,1772203894448,-500.0,0.00046096,120]
[406804775,1772203894459,-500.0,0.00046096,120]
[406804776,1772203894468,-500.0,0.00046096,120]
[406804777,1772203894632,-500.0,0.00046096,120]